bitfinex/quotes_SOLUSD_20260211
["timestamp","ask_amount","ask_price","bid_price","bid_amount"]
[1770821562729,12.36414891,80.879,80.84,19.60829551]
[1770821563022,19.60829551,80.87,80.828,12.37195031]
[1770821563228,19.60829551,80.87,80.83,19.60829551]
[1770821563428,19.60829551,80.87,80.83,20.08108252]
[1770821564022,19.60829551,80.88,80.841,0.47278701]
[1770821564531,19.60829551,80.86,80.824,0.47278701]
[1770821564834,12.36567782,80.869,80.831,12.37149113]
[1770821565348,0.35505252,80.836,80.762,12.85484788]
[1770821565627,19.60829551,80.83,80.791,0.47278701]
[1770821566012,29.32,80.847,80.801,0.47278701]
[1770821566328,19.60829551,80.84,80.801,0.47278701]
[1770821566525,19.60829551,80.83,80.791,0.47278701]
[1770821566730,12.37195031,80.828,80.782,0.47278701]
[1770821566938,12.37195031,80.828,80.79,19.60829551]
[1770821567539,19.60829551,80.82,80.788,0.47278701]
[1770821567852,19.60829551,80.85,80.811,0.47278701]
[1770821568017,19.60829551,80.84,80.811,0.47278701]
[1770821568217,12.3689986,80.848,80.798,41.26]
[1770821568218,19.60829551,80.83,80.798,41.26]
[1770821568418,19.60829551,80.83,80.797,0.47278701]
[1770821568632,19.60829551,80.84,80.8,19.60829551]
[1770821568841,12.37026682,80.839,80.802,12.37593128]
[1770821569028,19.60829551,80.83,80.79,41.26]
[1770821569221,19.60829551,80.83,80.79,60.86829551]
[1770821569425,12.37026682,80.839,80.801,0.47278701]
[1770821569621,19.60829551,80.83,80.792,12.37746311]
[1770821570232,19.60829551,80.82,80.788,0.47278701]
[1770821570436,12.37026682,80.839,80.801,0.45592474]
[1770821570644,4.61729252,80.867,80.801,0.45592474]
[1770821570943,19.60829551,80.89,80.851,0.45592474]
[1770821571124,19.60829551,80.9,80.86,19.60829551]
[1770821571441,19.60829551,80.9,80.853,0.45592474]
[1770821571442,12.36048106,80.903,80.87,19.60829551]
[1770821571741,19.60829551,80.89,80.825,0.45592474]
[1770821571933,0.35496301,80.902,80.842,0.45592474]
[1770821571934,19.60829551,80.88,80.842,0.45592474]
[1770821572939,12.36414891,80.879,80.843,12.36965476]
[1770821573337,19.60829551,80.87,80.831,12.37139052]
[1770821573547,12.35803704,80.919,80.86,19.60829551]
[1770821573738,19.60829551,80.91,80.87,19.60829551]
[1770821573937,19.60829551,80.91,80.861,41.28]
[1770821573938,19.60829551,80.92,80.88,19.60829551]
[1770821574122,0.3549419,80.936,80.89,19.60829551]
[1770821574322,19.60829551,80.93,80.89,19.60829551]
[1770821574848,43.24778508,80.929,80.89,19.60829551]
[1770821575046,12.35651002,80.929,80.89,19.60829551]
[1770821575237,12.35483073,80.94,80.91,19.60829551]
[1770821575429,19.60829551,80.95,80.91,19.60829551]
[1770821575636,19.60829551,80.95,80.911,0.45592474]
[1770821575945,0.35492127,80.939,80.892,41.28]
[1770821576144,0.35492127,80.939,80.893,0.45592474]
[1770821576325,19.60829551,80.95,80.91,19.60829551]
[1770821576522,19.60829551,80.95,80.911,0.45592474]
[1770821576738,19.60829551,80.94,80.9,19.60829551]
[1770821576950,0.35491113,80.952,80.91,19.60829551]
[1770821576951,19.60829551,80.95,80.91,19.60829551]
[1770821577153,12.35391641,80.946,80.91,19.60829551]
[1770821577348,59.62829551,80.96,80.92,19.60829551]
[1770821577657,19.60829551,80.97,80.93,19.60829551]
[1770821577955,19.60829551,80.98,80.94,19.60829551]
[1770821578326,19.60829551,80.98,80.941,0.45592474]
[1770821578525,19.60829551,80.97,80.93,19.60829551]
[1770821579140,19.61349621,80.97,80.93,19.61349621]
[1770821579328,19.61349621,80.96,80.92,19.61349621]
[1770821579646,19.61349621,80.94,80.901,0.45592474]
[1770821579832,19.61349621,80.94,80.884,30.90829282]
[1770821579833,19.61349621,80.95,80.91,19.61349621]
[1770821580025,19.61349621,80.95,80.91,20.06942095]
[1770821580347,40.02,80.97,80.905,12.36013714]
[1770821580348,59.63349621,80.97,80.931,0.45592474]
[1770821580533,59.63349621,80.97,80.92,19.61349621]
[1770821580724,59.63349621,80.97,80.93,19.61349621]
[1770821580924,0.35487172,81.009,80.951,0.45592474]
[1770821581142,19.61349621,81.0,80.96,19.61349621]
[1770821582247,19.61349621,81.0,80.951,0.45592474]
[1770821582248,19.61349621,80.98,80.951,0.45592474]
[1770821582439,19.61349621,80.99,80.951,0.45592474]
[1770821582642,19.61349621,80.96,80.925,0.45592474]
[1770821582833,40.02,80.989,80.95,19.61349621]
[1770821583034,12.34750827,80.988,80.95,19.61349621]
[1770821583225,19.61349621,80.97,80.932,41.2]
[1770821583427,19.61349621,80.98,80.94,19.61349621]
[1770821583642,43.21627895,80.988,80.937,0.45592474]
[1770821583643,19.61349621,80.97,80.937,0.45592474]
[1770821583945,0.35484334,80.984,80.923,12.3573788]
[1770821584130,19.61349621,80.96,80.923,12.3573788]
[1770821584328,19.61349621,80.95,80.909,0.45592474]
[1770821584640,40.02,80.958,80.921,0.45592474]
[1770821584839,19.61349621,80.96,80.921,0.45592474]
[1770821585038,12.35193122,80.959,80.922,12.3575789]
[1770821585242,19.61349621,80.95,80.912,0.45592474]
[1770821585450,40.02,80.97,80.931,0.45592474]
[1770821585654,19.61349621,80.96,80.921,0.45592474]
[1770821586552,19.61349621,80.96,80.911,43.25740627]
[1770821586553,40.02,80.967,80.931,0.45592474]
[1770821586732,19.61349621,80.96,80.92,20.06942095]
[1770821586934,12.35193122,80.959,80.921,12.35773161]
[1770821587133,12.35193122,80.959,80.93,19.61349621]
[1770821587342,40.02,80.967,80.921,12.35773161]
[1770821587343,40.02,80.967,80.941,0.45592474]
[1770821587655,12.34919512,80.977,80.941,0.45592474]
[1770821587861,19.61349621,80.99,80.951,0.45592474]
[1770821588066,40.04,80.999,80.94,19.61349621]
[1770821588067,19.61349621,80.98,80.94,19.61349621]
[1770821588734,19.61349621,80.97,80.938,0.45592474]
[1770821588939,70.90838953,80.989,80.921,43.25206064]
[1770821588940,12.35193122,80.959,80.921,12.35773161]
[1770821589144,12.35193122,80.959,80.92,19.61349621]
[1770821589344,43.23175928,80.959,80.92,19.61349621]
[1770821589642,40.04,80.965,80.94,19.61349621]
[1770821589844,40.04,80.965,80.915,43.25518755]
[1770821589845,12.34735581,80.989,80.951,0.45592474]
[1770821590044,12.34735581,80.989,80.937,41.18]
[1770821590045,12.34706041,80.991,80.961,0.45592474]
[1770821590233,19.61349621,81.0,80.971,0.45592474]
[1770821590449,19.61349621,80.99,80.958,0.45592474]
[1770821590648,19.61349621,81.0,80.96,20.06942095]
[1770821590843,19.61349621,80.99,80.96,0.45592474]
[1770821591245,19.61349621,80.98,80.945,0.45592474]
[1770821591453,19.61349621,80.96,80.932,0.45592474]
[1770821591657,19.61349621,80.95,80.919,0.45592474]
[1770821591837,19.61349621,80.95,80.912,41.16]
[1770821592238,19.61349621,80.96,80.914,0.45592474]
[1770821592461,19.61349621,80.94,80.912,53.51909309]
[1770821592661,19.61349621,80.95,80.912,53.51909309]
[1770821592847,40.04,80.959,80.921,0.45592474]
[1770821593242,19.61349621,80.95,80.921,0.45592474]
[1770821593460,19.61349621,80.95,80.902,30.9012222]
[1770821593461,19.61349621,80.98,80.941,0.45592474]
[1770821593641,19.61349621,81.0,80.96,19.61349621]
[1770821593844,19.61349621,81.0,80.961,0.45592474]
[1770821594058,40.02,81.002,80.961,0.45592474]
[1770821594255,19.61349621,81.0,80.961,0.45592474]
[1770821594459,19.61349621,80.99,80.949,41.18]
[1770821594758,0.2,81.02,80.98,19.61349621]
[1770821594937,12.34278379,81.019,80.98,19.61349621]
[1770821595137,0.2,81.02,80.99,19.61349621]
[1770821595336,0.2,81.02,81.0,19.61349621]
[1770821595747,0.2,81.03,81.01,19.61349621]
[1770821595954,12.33736974,81.055,81.02,19.61349621]
[1770821596154,12.33821515,81.049,81.015,0.45592474]
[1770821596343,19.61349621,81.03,80.991,0.45592474]
[1770821596547,19.61349621,81.03,80.99,19.61349621]
[1770821596961,19.61349621,81.02,80.972,0.45592474]
[1770821597157,19.61349621,81.01,80.972,0.45592474]
[1770821597458,19.61349621,81.02,80.981,0.45592474]
[1770821597654,19.61349621,81.01,80.972,12.34989106]
[1770821598156,52.36278379,81.019,80.981,0.45592474]
[1770821598458,40.02,81.019,80.972,0.45592474]
[1770821598665,40.02,81.019,80.981,0.45592474]
[1770821599066,12.33821515,81.049,81.001,0.45592474]
[1770821599358,0.2,81.05,81.011,0.45592474]
[1770821599660,19.61349621,81.04,81.011,0.45592474]
[1770821599862,19.61349621,81.03,80.998,0.45592474]
[1770821600062,19.61349621,81.01,80.965,0.45592474]
[1770821600240,19.61349621,81.01,80.96,19.61349621]
[1770821600241,19.61349621,80.98,80.947,0.45592474]
[1770821600446,19.61349621,80.98,80.948,0.4774067]
[1770821600660,19.61349621,80.96,80.922,0.4774067]
[1770821600971,19.61349621,80.99,80.951,0.4774067]
[1770821601172,19.61349621,81.0,80.961,0.4774067]
[1770821601343,19.61349621,80.99,80.961,0.4774067]
[1770821601542,19.61349621,80.99,80.951,0.4774067]
[1770821601754,12.34583143,80.999,80.961,0.4774067]
[1770821602243,12.34583143,80.999,80.942,43.24083911]
[1770821602244,19.61349621,80.98,80.948,0.4774067]
[1770821602440,19.61349621,80.99,80.951,0.4774067]
[1770821602846,19.61349621,80.98,80.951,0.4774067]
[1770821603045,19.61349621,80.99,80.951,0.4774067]
[1770821603250,19.61349621,80.98,80.951,0.4774067]
[1770821603460,19.61349621,80.99,80.961,0.4774067]
[1770821603858,19.61349621,80.98,80.939,0.4774067]
[1770821604068,19.61349621,80.99,80.951,0.4774067]
[1770821604455,19.61349621,80.98,80.94,20.09090291]
[1770821604651,19.61349621,80.99,80.951,0.4774067]
[1770821605166,19.61349621,80.98,80.951,0.4774067]
[1770821605465,19.61349621,81.02,80.973,0.4774067]
[1770821605662,19.61349621,81.02,80.981,0.4774067]
[1770821606063,40.04,81.033,80.972,43.22481845]
[1770821606064,19.61349621,81.03,80.991,0.4774067]
[1770821606367,40.04,81.033,81.001,0.48453269]
[1770821606555,19.61349621,81.02,80.988,0.48453269]
[1770821607371,0.35464147,80.998,80.951,0.48453269]
[1770821607560,0.35464147,80.998,80.931,0.48453269]
[1770821607561,19.61349621,80.96,80.931,0.48453269]
[1770821607748,19.61349621,80.95,80.931,0.48453269]
[1770821607946,19.61349621,80.95,80.916,17.26]
[1770821607947,19.61349621,80.95,80.919,0.48453269]
[1770821608171,40.04,80.962,80.916,17.26]
[1770821608172,40.04,80.962,80.921,0.48453269]
[1770821608342,40.04,80.987,80.941,0.48453269]
[1770821608545,19.61349621,80.98,80.941,0.48453269]
[1770821608767,19.61349621,81.0,80.961,0.48453269]
[1770821608945,59.65349621,81.0,80.961,0.48453269]
[1770821609151,12.34583143,80.999,80.961,0.48453269]
[1770821609760,12.34583143,80.999,80.963,0.48453269]
[1770821610393,19.61349621,81.02,80.981,0.48453269]
[1770821611045,12.33973765,81.039,81.001,0.48453269]
[1770821611357,19.61349621,81.03,81.001,0.48453269]
[1770821611764,12.34126053,81.029,81.001,0.48453269]
[1770821611953,12.34126053,81.029,81.001,12.83002809]
[1770821612158,19.61349621,81.02,80.987,12.83219342]
[1770821612380,43.19441187,81.029,80.99,20.0980289]
[1770821612562,19.61349621,81.03,80.991,0.48453269]
[1770821612967,19.61349621,81.03,80.987,12.34766073]
[1770821612968,0.35460109,81.029,80.987,12.34766073]
[1770821613175,19.61349621,81.03,80.99,19.61349621]
[1770821613376,12.33839318,81.048,81.011,0.48453269]
[1770821613569,19.61349621,81.04,81.011,0.48453269]
[1770821613774,12.33821515,81.049,81.011,12.82843672]
[1770821614082,12.33821515,81.049,81.012,0.48453269]
[1770821614780,19.61349621,81.04,81.012,0.48453269]
[1770821614966,12.33821515,81.049,81.012,0.48453269]
[1770821615166,19.61349621,81.04,81.012,0.48453269]
[1770821615482,19.61349621,81.04,80.997,30.86525989]
[1770821615483,6.44599022,81.039,80.937,0.50027502]
[1770821615662,19.61349621,80.95,80.831,1.23714911]
[1770821615859,19.61349621,80.89,80.802,55.64]
[1770821616065,5.36086188,80.948,80.8,19.61349621]
[1770821616066,0.45268973,80.922,80.811,0.11733604]
[1770821616283,0.45268973,80.922,80.8,19.61349621]
[1770821616284,19.61349621,80.91,80.87,19.61349621]
[1770821616466,19.61349621,80.9,80.86,19.61349621]
[1770821616661,19.61349621,80.91,80.87,19.61349621]
[1770821617268,0.45268973,80.943,80.89,19.61349621]
[1770821617468,19.61349621,80.94,80.9,19.61349621]
[1770821617882,19.61349621,80.94,80.901,43.26275324]
[1770821618069,19.61349621,80.95,80.91,19.61349621]
[1770821618386,0.45268973,80.98,80.94,19.61349621]
[1770821618587,0.45268973,80.979,80.94,41.08]
[1770821618763,0.45268973,80.979,80.94,60.69349621]
[1770821619274,0.45268973,80.969,80.921,0.48453269]
[1770821619484,0.45268973,80.983,80.95,19.61349621]
[1770821619679,0.45268973,80.983,80.94,19.61349621]
[1770821619868,19.61349621,80.99,80.95,19.61349621]
[1770821620069,19.61349621,80.99,80.934,43.24511329]
[1770821620070,0.45268973,80.997,80.96,19.61349621]
[1770821620264,19.61349621,80.99,80.954,41.1]
[1770821620480,12.3462887,80.996,80.954,41.1]
[1770821620697,0.45268973,80.989,80.937,4.61729252]
[1770821620866,20.06618594,80.98,80.94,19.61349621]
[1770821621484,0.45268973,80.996,80.95,19.61349621]
[1770821621687,0.45268973,80.999,80.951,0.48453269]
[1770821621862,0.45268973,80.993,80.95,19.61349621]
[1770821622063,0.45268973,80.989,80.945,41.1]
[1770821622268,0.45268973,80.989,80.94,19.61349621]
[1770821622469,19.61349621,80.98,80.94,19.61349621]
[1770821622665,0.45268973,80.989,80.95,19.61349621]
[1770821622898,0.45268973,80.989,80.951,41.1]
[1770821623296,0.45268973,80.979,80.931,53.94073735]
[1770821623589,4.61729252,80.995,80.931,84.83124902]
[1770821623590,0.45268973,80.969,80.931,84.83124902]
[1770821623889,0.45268973,80.979,80.931,84.83124902]
[1770821624094,0.45268973,80.979,80.931,84.34671633]
[1770821624389,0.45268973,80.979,80.91,54.05451982]
[1770821624390,0.45268973,80.949,80.919,12.35800649]
[1770821624564,19.61349621,80.94,80.919,12.35800649]
[1770821625369,0.45268973,80.949,80.919,12.35800649]
[1770821625775,0.45268973,80.949,80.911,43.25739202]
[1770821625776,19.61349621,80.94,80.911,43.25739202]
[1770821625985,19.61349621,80.93,80.91,41.12]
[1770821626175,12.35498338,80.939,80.852,12.36827784]
[1770821626176,0.45268973,80.919,80.852,12.36827784]
[1770821626381,19.61349621,80.9,80.853,0.48453269]
[1770821626584,19.61349621,80.91,80.87,19.61349621]
[1770821626765,19.61349621,80.91,80.854,41.12]
[1770821626766,20.06618594,80.93,80.881,0.48453269]
[1770821626970,19.61349621,80.92,80.881,0.48453269]
[1770821627274,19.61349621,80.93,80.89,19.61349621]
[1770821627469,19.61349621,80.94,80.89,19.61349621]
[1770821627682,19.61349621,80.95,80.91,19.61349621]
[1770821627983,19.61349621,80.93,80.902,12.36063385]
[1770821628290,19.61349621,80.96,80.921,0.48453269]
[1770821628869,0.45268973,80.949,80.902,43.26221848]
[1770821629086,0.45268973,80.919,80.891,12.36222033]
[1770821629385,0.45268973,80.919,80.88,12.36390175]
[1770821629573,19.61349621,80.93,80.891,0.48453269]
[1770821629774,19.61349621,80.95,80.901,0.48453269]
[1770821629979,0.45268973,80.939,80.902,43.26221848]
[1770821630179,19.61349621,80.93,80.902,12.36063385]
[1770821630380,0.45268973,80.929,80.902,12.36063385]
[1770821630574,19.61349621,80.94,80.902,43.26221848]
[1770821630887,19.61349621,80.94,80.903,41.12]
[1770821631086,19.61349621,80.93,80.903,41.12]
[1770821631391,20.08421472,80.91,80.87,19.61349621]
[1770821631690,20.08421472,80.91,80.86,4.61729252]
[1770821631691,0.47071851,80.899,80.86,12.36705416]
[1770821631877,39.96,80.936,80.855,12.36781893]
[1770821631878,19.61349621,80.88,80.855,12.36781893]
[1770821632079,19.61349621,80.88,80.854,41.14]
[1770821632283,19.61349621,80.9,80.86,19.61349621]
[1770821632579,19.61349621,80.88,80.855,12.36781893]
[1770821632782,0.47071851,80.889,80.855,12.36781893]
[1770821632987,19.61349621,80.9,80.855,43.28736626]
[1770821633293,0.47071851,80.903,80.855,43.28736626]
[1770821633294,19.61349621,80.89,80.855,43.28736626]
[1770821633491,19.61349621,80.88,80.855,12.36781893]
[1770821633692,19.61349621,80.89,80.855,12.36781893]
[1770821633991,19.61349621,80.9,80.86,19.61349621]
[1770821634174,19.61349621,80.89,80.855,43.28736626]
[1770821634373,20.08421472,80.88,80.855,12.36781893]
[1770821634584,19.61349621,80.88,80.855,12.36781893]
[1770821634904,19.61349621,80.89,80.855,12.36781893]
[1770821635682,19.61349621,80.9,80.86,19.61349621]
[1770821635979,19.61349621,80.9,80.861,43.28415428]
[1770821636178,19.61349621,80.9,80.862,0.49612243]
[1770821636472,20.08421472,80.91,80.87,19.61349621]
[1770821636686,19.61349621,80.9,80.871,41.22]
[1770821636887,20.08421472,80.91,80.871,41.22]
[1770821637199,19.61349621,80.9,80.871,41.22]
[1770821637495,0.47071851,80.909,80.872,41.24]
[1770821637677,19.61349621,80.9,80.872,41.24]
[1770821637878,0.47071851,80.909,80.872,41.24]
[1770821638182,19.61349621,80.89,80.873,12.36506621]
[1770821638494,19.61349621,80.88,80.85,12.36858379]
[1770821638883,0.47071851,80.879,80.85,12.36858379]
[1770821639282,0.47071851,80.879,80.83,19.65848777]
[1770821639283,19.65848777,80.86,80.828,30.92980671]
[1770821639500,0.47071851,80.879,80.831,0.49612243]
[1770821639698,19.65848777,80.87,80.831,0.49612243]
[1770821640207,19.65848777,80.87,80.832,12.37133808]
[1770821640382,19.65848777,80.88,80.84,19.65848777]
[1770821640915,19.65848777,80.88,80.833,41.79612243]
[1770821640916,19.65848777,80.85,80.81,19.65848777]
[1770821641201,19.65848777,80.86,80.82,19.65848777]
[1770821641421,19.65848777,80.85,80.821,41.32]
[1770821641594,19.65848777,80.84,80.821,41.32]
[1770821641983,0.47071851,80.849,80.817,41.32]
[1770821642182,0.47071851,80.849,80.818,43.30718403]
[1770821642387,0.47071851,80.839,80.818,53.69348115]
[1770821642606,19.65848777,80.86,80.82,19.65848777]
[1770821642782,19.65848777,80.84,80.818,41.32]
[1770821642983,0.47071851,80.849,80.818,84.62718403]
[1770821643190,19.65848777,80.87,80.83,19.65848777]
[1770821643388,19.65848777,80.86,80.831,41.34]
[1770821643584,0.47071851,80.869,80.831,41.34]
[1770821643803,19.65848777,80.88,80.832,0.49612243]
[1770821643989,19.65848777,80.87,80.832,0.49612243]
[1770821644193,19.65848777,80.88,80.84,19.65848777]
[1770821644393,0.47071851,80.885,80.85,19.65848777]
[1770821644700,0.47071851,80.879,80.841,41.36]
[1770821645207,12.60485752,80.88,80.842,0.49612243]
[1770821645388,12.60485752,80.88,80.843,41.36]
[1770821645584,12.60485752,80.88,80.844,0.49612243]
[1770821645788,12.60485752,80.88,80.845,41.38]
[1770821645789,0.47071851,80.879,80.845,41.38]
[1770821646210,12.60485752,80.88,80.846,12.36919575]
[1770821646522,0.47071851,80.899,80.86,12.60485752]
[1770821646805,0.47071851,80.912,80.87,12.60485752]
[1770821646991,12.60485752,80.91,80.87,12.60485752]
[1770821647192,0.47071851,80.899,80.86,12.60485752]
[1770821647398,12.60485752,80.91,80.871,0.49612243]
[1770821647813,12.60485752,80.91,80.87,12.60485752]
[1770821647814,0.47071851,80.94,80.89,12.60485752]
[1770821647988,0.47071851,80.953,80.91,12.60485752]
[1770821648182,0.47071851,80.953,80.88,12.60485752]
[1770821648183,0.47071851,80.953,80.92,12.60485752]
[1770821648524,0.47071851,80.965,80.93,12.60485752]
[1770821648814,0.47071851,80.978,80.94,12.60485752]
[1770821649038,12.60485752,80.99,80.95,12.60485752]
[1770821649197,0.47071851,80.989,80.951,41.4]
[1770821649518,39.78,81.013,80.927,0.49612243]
[1770821649519,12.60485752,80.96,80.927,0.49612243]
[1770821649687,0.47071851,80.969,80.93,12.60485752]
[1770821649883,0.47071851,80.969,80.931,41.38]
[1770821650083,0.47071851,80.959,80.93,12.35635734]
[1770821650287,13.07557603,80.98,80.94,12.60485752]
[1770821650489,12.60485752,80.97,80.931,41.87612243]
[1770821650789,0.47071851,80.979,80.931,41.87612243]
[1770821650985,0.47071851,80.979,80.94,12.60485752]
[1770821651396,0.47071851,80.979,80.937,0.49612243]
[1770821651397,0.47071851,80.979,80.941,41.38]
[1770821651786,12.60485752,80.98,80.941,41.38]
[1770821652104,12.60485752,80.97,80.941,41.38]
[1770821652309,0.47071851,80.969,80.941,53.73462842]
[1770821652496,12.60485752,80.99,80.95,12.60485752]
[1770821652806,39.72,81.048,80.971,0.49612243]
[1770821653107,12.60485752,81.0,80.972,41.4]
[1770821653406,12.60485752,81.01,80.974,0.49612243]
[1770821653591,12.60485752,81.01,80.975,41.4]
[1770821653792,12.60485752,81.0,80.975,41.4]
[1770821654286,12.60485752,81.0,80.96,12.60485752]
[1770821654501,12.60485752,81.0,80.956,41.4]
[1770821654502,12.60485752,80.99,80.959,41.4]
[1770821654712,12.60485752,81.0,80.96,13.10097995]
[1770821654910,12.60485752,80.99,80.961,41.89612243]
[1770821655206,12.60485752,81.0,80.962,0.49612243]
[1770821655407,12.60485752,81.01,80.971,0.49612243]
[1770821655797,12.60485752,81.0,80.96,12.60485752]
[1770821656002,12.60485752,81.02,80.971,0.49612243]
[1770821656205,12.60485752,81.01,80.973,0.49612243]
[1770821656990,12.60485752,81.0,80.973,0.49612243]
[1770821657191,12.60485752,80.99,80.961,41.4]
[1770821657411,12.60485752,80.99,80.91,49.43727636]
[1770821657412,12.60485752,80.97,80.94,30.88701781]
[1770821657713,12.60485752,80.97,80.941,41.42]
[1770821657896,0.47071851,81.027,80.961,0.49612243]
[1770821658098,12.60485752,81.01,80.971,0.49612243]
[1770821658401,12.60485752,81.02,80.981,0.49612243]
[1770821658604,12.60485752,81.01,80.973,43.22428463]
[1770821658804,12.60485752,81.01,80.974,0.49612243]
[1770821659109,12.60485752,81.01,80.973,43.72040706]
[1770821659307,12.60485752,81.0,80.974,41.42]
[1770821659514,12.60485752,81.0,80.968,12.35053265]
[1770821659696,12.60485752,81.01,80.975,0.49612243]
[1770821659901,0.47071851,81.022,80.976,41.42]
[1770821660087,12.60485752,81.0,80.976,41.42]
[1770821660489,12.34583143,80.999,80.976,41.42]
[1770821660810,12.34583143,80.999,80.96,12.60485752]
[1770821660811,0.45099708,80.984,80.911,12.35925893]
[1770821661116,12.60485752,80.97,80.931,0.46507642]
[1770821661315,12.60485752,80.95,80.925,0.46507642]
[1770821661612,12.60485752,80.96,80.925,0.46507642]
[1770821661991,12.60485752,80.96,80.923,41.42]
[1770821661992,12.60485752,80.94,80.923,41.42]
[1770821662312,12.60485752,80.96,80.925,0.46507642]
[1770821662703,12.60485752,80.95,80.92,41.42]
[1770821663014,0.45099708,80.999,80.941,0.46507642]
[1770821663191,12.60485752,81.0,80.961,0.46507642]
[1770821663393,12.60485752,80.98,80.943,0.46507642]
[1770821663711,12.60485752,80.99,80.951,0.46507642]
[1770821664099,0.45099708,81.003,80.951,0.46507642]
[1770821664312,12.60485752,81.0,80.951,0.46507642]
[1770821664506,31.31582727,80.999,80.952,12.3529993]
[1770821664721,12.60485752,80.99,80.953,0.46507642]
[1770821664916,12.60485752,80.99,80.952,12.3529993]
[1770821665225,12.60485752,80.99,80.952,43.23549757]
[1770821665607,12.60485752,80.98,80.952,12.3529993]
[1770821666011,0.45099708,80.989,80.952,12.3529993]
[1770821666329,0.45099708,80.989,80.92,4.61729252]
[1770821666330,12.60485752,80.97,80.945,12.35404422]
[1770821666535,12.60485752,80.96,80.926,12.35696809]
[1770821666698,12.60485752,80.95,80.926,12.35696809]
[1770821667018,0.45593373,80.968,80.926,12.35696809]
[1770821667221,12.60485752,80.95,80.926,12.35696809]
[1770821667413,12.60485752,80.95,80.917,12.35834249]
[1770821667721,12.60485752,80.96,80.921,0.49396303]
[1770821668015,12.60485752,80.97,80.931,0.49396303]
[1770821668216,12.34725235,80.99,80.941,0.49396303]
[1770821668513,12.60485752,80.98,80.943,0.49396303]
[1770821668731,12.60485752,80.98,80.945,0.49396303]
[1770821669113,13.06079125,80.98,80.944,41.46]
[1770821669300,13.06079125,80.98,80.942,43.24083911]
[1770821669501,0.45593373,80.979,80.939,41.46]
[1770821669815,12.60485752,80.95,80.923,12.35737007]
[1770821670016,0.45593373,80.929,80.887,12.85688908]
[1770821670324,12.60485752,80.92,80.888,41.95396303]
[1770821670540,24.96122055,80.93,80.892,12.36216189]
[1770821670822,12.60485752,80.91,80.888,53.82276263]
[1770821671033,12.60485752,80.91,80.888,41.46]
[1770821671193,12.60485752,80.91,80.86,12.60485752]
[1770821671194,12.60485752,80.9,80.865,41.48]
[1770821671399,12.60485752,80.92,80.881,0.49396303]
[1770821671696,12.60485752,80.92,80.882,41.48]
[1770821672199,12.60485752,80.92,80.883,0.49396303]
[1770821672419,0.45593373,80.927,80.883,0.49396303]
[1770821672420,12.60485752,80.91,80.883,0.49396303]
[1770821672717,12.60485752,80.92,80.884,43.76580913]
[1770821673017,12.60485752,80.92,80.885,0.49396303]
[1770821673318,12.60485752,80.93,80.891,0.49396303]
[1770821673496,5.36086188,80.964,80.886,41.48]
[1770821673497,12.60485752,80.91,80.886,41.48]
[1770821674104,12.60485752,80.92,80.886,41.48]
[1770821674422,12.60485752,80.91,80.886,41.48]
[1770821674620,12.60485752,80.9,80.861,12.36690122]
[1770821674824,12.60485752,80.92,80.881,0.49396303]
[1770821675004,12.60485752,80.93,80.891,0.49396303]
[1770821675606,0.45593373,80.947,80.901,0.49396303]
[1770821675607,12.60485752,80.94,80.901,0.49396303]
[1770821676122,0.45593373,80.995,80.931,0.49396303]
[1770821676312,12.60485752,80.97,80.933,0.49396303]
[1770821676505,12.60485752,80.97,80.935,0.49396303]
[1770821676826,12.60485752,80.96,80.936,12.35544133]
[1770821677322,12.60485752,80.95,80.911,0.49396303]
[1770821677522,12.60485752,80.94,80.911,0.49396303]
[1770821677726,12.60485752,80.95,80.911,0.49396303]
[1770821677904,12.60485752,80.95,80.913,0.49396303]
[1770821678222,12.60485752,80.95,80.921,0.49396303]
[1770821678606,12.60485752,80.95,80.922,43.74548918]
[1770821678810,12.60485752,80.95,80.923,0.49396303]
[1770821679010,12.60485752,80.94,80.922,12.3575789]
[1770821679624,0.02950392,80.959,80.922,12.3575789]
[1770821679812,12.60485752,80.94,80.923,0.49396303]
[1770821680127,12.60485752,80.93,80.914,12.3588007]
[1770821680318,12.60485752,80.93,80.903,72.42089149]
[1770821680514,509.7,81.122,80.924,0.49396303]
[1770821680515,12.60485752,80.97,80.924,0.49396303]
[1770821680723,12.60485752,80.99,80.943,0.49396303]
[1770821681026,12.60485752,80.96,80.928,0.49396303]
[1770821681731,176.60485752,81.0,80.896,0.49396303]
[1770821681732,12.60485752,80.94,80.896,0.49396303]
[1770821682032,12.60485752,80.92,80.896,0.49396303]
[1770821682328,12.60485752,80.91,80.888,41.54]
[1770821682629,12.60485752,80.9,80.869,0.49396303]
[1770821682820,12.60485752,80.9,80.871,0.49396303]
[1770821683121,12.60485752,80.9,80.842,49.47872712]
[1770821683122,12.60485752,80.88,80.842,0.49396303]
[1770821683327,12.60485752,80.87,80.842,0.49396303]
[1770821683624,39.26,80.896,80.842,0.49396303]
[1770821684006,39.26,80.896,80.844,0.49396303]